bitfinex-derivatives/quotes_ETHF0:USTF0_20251001
["timestamp","ask_amount","ask_price","bid_price","bid_amount"]
[1759341096221,3.5299,4295.8,4295.7,0.42657223]
[1759341096620,3.9534,4295.8,4295.7,0.33597223]
[1759341096920,3.9534,4295.8,4295.7,41.04537223]
[1759341097116,3.9534,4295.8,4295.7,0.00237223]
[1759341097328,3.9534,4295.8,4295.7,0.24537223]
[1759341098220,0.3221,4295.7,4294.1,3.2644]
[1759341098423,3.5299,4295.1,4295.0,0.1812]
[1759341098623,3.2078,4295.1,4295.0,41.2808]
[1759341098822,0.4449,4295.5,4295.0,41.2808]
[1759341098823,0.1228,4296.5,4296.3,0.1812]
[1759341099129,0.5352,4296.3,4296.2,0.0906]
[1759341099326,0.5352,4296.3,4296.2,0.33610937]
[1759341099522,0.5352,4296.3,4296.2,41.13610937]
[1759341099721,0.5352,4296.3,4296.2,41.04550937]
[1759341100526,0.5352,4296.3,4296.2,40.80250937]
[1759341100729,0.7456,4296.3,4296.2,0.24650937]
[1759341101520,0.7456,4296.3,4296.2,0.00250937]
[1759341101828,0.7456,4296.3,4296.2,0.24550937]
[1759341103332,0.7456,4296.3,4296.2,0.00250937]
[1759341103629,0.7456,4296.3,4296.2,0.24550937]
[1759341104639,0.5352,4296.3,4296.2,0.42670937]
[1759341104933,0.7456,4296.3,4296.2,0.42670937]
[1759341105124,0.7456,4296.3,4296.2,0.33610937]
[1759341105330,0.3221,4296.3,4296.2,0.42670937]
[1759341105525,0.7456,4296.3,4296.2,0.24550937]
[1759341106130,0.7456,4296.3,4296.2,0.00250937]
[1759341107027,0.5352,4294.9,4294.8,0.13111979]
[1759341107324,0.5352,4294.9,4294.8,40.8906]
[1759341107530,0.5352,4294.9,4294.8,41.1346]
[1759341108035,0.5352,4294.9,4294.8,41.13662069]
[1759341108230,0.5352,4294.9,4294.8,40.89262069]
[1759341108529,0.5352,4294.9,4294.8,41.13662069]
[1759341109128,0.5352,4294.9,4294.8,40.89262069]
[1759341109333,0.5352,4294.9,4294.8,41.13562069]
[1759341110033,0.3221,4294.9,4294.8,41.13562069]
[1759341110237,0.1228,4295.0,4294.9,0.2378]
[1759341110431,0.4449,4295.5,4295.2,0.0566]
[1759341110630,0.4449,4295.5,4295.4,0.1812]
[1759341111027,1.16957,4296.5,4295.9,0.1812]
[1759341111028,0.3359,4296.0,4295.9,0.1812]
[1759341111234,0.1228,4296.5,4295.9,3.6886]
[1759341111533,0.5463,4296.0,4295.9,0.1812]
[1759341111733,0.8684,4296.0,4295.9,0.243]
[1759341112238,0.8684,4296.0,4295.9,0.3336]
[1759341112445,3.2078,4296.2,4295.9,0.4808]
[1759341112734,0.658,4296.0,4295.9,0.1812]
[1759341112931,0.658,4295.5,4295.4,0.0906]
[1759341113129,0.658,4295.5,4295.4,40.8906]
[1759341113335,0.658,4295.5,4295.4,41.044]
[1759341113527,0.3072,4294.9,4294.8,0.00202069]
[1759341114134,0.3072,4294.9,4294.8,0.24602069]
[1759341116536,0.3072,4294.9,4294.8,0.00202069]
[1759341116737,5.3072,4294.9,4294.8,0.00202069]
[1759341117037,1.0474,4294.0,4293.1,3.2078]
[1759341117337,0.1261,4293.5,4293.1,0.5749]
[1759341117533,0.1261,4293.5,4292.0,0.1257]
[1759341117534,0.3072,4293.0,4292.9,0.26729455]
[1759341117929,0.30970206,4293.0,4292.9,0.02576745]
[1759341118134,0.30970206,4293.0,4292.9,0.26976745]
[1759341118135,0.43580206,4293.0,4292.9,0.26976745]
[1759341118334,0.00250206,4293.0,4292.9,0.60066745]
[1759341119242,0.00250206,4293.0,4292.9,0.35666745]
[1759341119442,0.42154206,4293.0,4292.9,36.91866745]
[1759341119642,0.00250206,4293.0,4292.9,36.91866745]
[1759341120339,0.00250206,4293.0,4292.9,0.35666745]
[1759341120642,0.00250206,4293.0,4292.9,5.60066745]
[1759341121043,0.3072,4294.4,4293.6,0.3309]
[1759341121044,3.2078,4294.2,4293.6,0.3309]
[1759341121242,3.515,4294.2,4293.6,40.8]
[1759341121539,3.2078,4294.2,4293.8,0.3309]
[1759341121739,0.3072,4294.1,4293.8,0.3309]
[1759341122243,0.41896,4293.9,4293.7,0.3309]
[1759341122435,0.0028172,4294.1,4294.0,0.1257]
[1759341122642,0.0028172,4294.1,4294.0,0.4566]
[1759341124042,0.0028172,4294.1,4294.0,5.4566]
[1759341125144,0.0028172,4294.1,4294.0,0.4566]
[1759341125442,0.3100172,4294.1,4294.0,0.3309]
[1759341125640,0.3100172,4294.1,4294.0,0.5749]
[1759341125834,0.41896,4293.8,4293.7,0.3309]
[1759341126034,0.72616,4293.8,4293.7,0.5749]
[1759341126241,0.72616,4293.8,4293.7,0.244]
[1759341127341,0.41901,4293.4,4293.2,0.3309]
[1759341127542,0.41901,4293.4,4293.0,0.1257]
[1759341127543,0.41901,4293.4,4293.3,0.5749]
[1759341128245,3.62679,4293.6,4293.4,0.3309]
[1759341128448,0.41896,4293.9,4293.6,0.3309]
[1759341128642,3.6295572,4294.1,4293.8,0.3309]
[1759341128851,0.0028172,4294.1,4294.0,0.1257]
[1759341129041,0.0028172,4294.1,4294.0,0.7006]
[1759341129948,0.41898,4293.7,4293.5,0.3309]
[1759341130147,0.41898,4293.7,4293.6,0.5749]
[1759341130744,0.41897,4293.8,4293.6,0.244]
[1759341130943,0.41896,4293.9,4293.7,0.3309]
[1759341131244,0.41897,4293.8,4293.7,0.3309]
[1759341131651,0.3072,4293.7,4293.6,0.244]
[1759341131852,0.3072,4293.7,4293.6,0.5749]
[1759341132148,0.419,4293.5,4293.4,0.3309]
[1759341132350,0.419,4293.5,4293.4,0.5749]
[1759341132650,0.7262,4293.5,4293.4,0.3309]
[1759341132851,0.72622,4293.3,4293.1,0.3309]
[1759341133051,0.41902,4293.3,4293.2,0.5749]
[1759341133352,0.41898,4293.7,4293.5,0.1257]
[1759341133651,3.2078,4294.0,4293.6,0.244]
[1759341133849,0.0028172,4294.1,4294.0,0.1257]
[1759341134149,0.0028172,4294.1,4294.0,0.4566]
[1759341134350,0.3100172,4294.1,4294.0,0.5749]
[1759341134654,0.0028172,4294.1,4294.0,0.5749]
[1759341135042,0.0028172,4294.1,4294.0,0.4566]
[1759341135252,0.0028172,4294.1,4294.0,0.7006]
[1759341135447,0.0028172,4294.1,4294.0,5.7006]
[1759341136143,0.0028172,4294.1,4294.0,46.2566]
[1759341136343,0.3100172,4294.1,4294.0,0.3309]
[1759341136549,0.3100172,4294.1,4294.0,0.5749]
[1759341136750,0.3100172,4294.1,4294.0,0.244]
[1759341137252,0.4333,4294.0,4293.6,40.8]
[1759341137451,0.3072,4293.7,4293.1,36.6599]
[1759341137753,1.04744,4293.7,4293.2,0.5749]
[1759341137947,0.3072,4293.5,4293.2,41.3749]
[1759341138149,0.41901,4293.3,4293.2,41.3749]
[1759341138752,0.41901,4293.4,4293.2,40.8]
[1759341138947,0.41901,4293.4,4293.3,0.5749]
[1759341139550,0.34820662,4293.4,4293.3,0.5749]
[1759341139749,0.34820662,4293.4,4293.3,0.3309]
[1759341139951,0.419,4293.5,4293.3,0.244]
[1759341140148,0.3072,4293.7,4293.4,0.3225]
[1759341140348,0.72618,4293.7,4293.3,0.244]
[1759341140546,0.1261,4294.0,4293.3,0.244]
[1759341140746,0.41895,4294.0,4293.6,0.3225]
[1759341140946,0.41896,4293.9,4293.7,0.5665]
[1759341141147,0.41901,4293.4,4293.1,40.8]
[1759341141350,0.3169,4293.4,4293.3,0.4257]
[1759341141651,0.5398,4293.7,4293.6,0.7482]
[1759341141850,0.5398,4293.7,4293.6,0.9922]
[1759341142048,0.7458,4293.7,4293.6,0.9922]
[1759341143247,0.2229,4293.7,4293.6,0.9922]
[1759341143452,0.7524,4293.7,4293.6,0.4531]
[1759341144154,0.7524,4293.7,4293.6,0.244]
[1759341144155,0.5295,4293.7,4293.6,0.244]
[1759341144362,1.18037,4293.7,4293.6,0.244]
[1759341144554,0.64081,4293.3,4293.2,0.7583]
[1759341144756,0.64081,4293.3,4293.2,1.0023]
[1759341144956,0.64081,4293.3,4293.2,0.7583]
[1759341145155,0.64081,4293.3,4293.2,1.0013]
[1759341145458,0.64081,4293.3,4293.2,0.7583]
[1759341145659,0.64081,4293.3,4293.2,1.0013]
[1759341146456,0.96431,4293.3,4293.2,0.7583]
[1759341146663,0.96431,4293.3,4293.2,1.0013]
[1759341147062,0.7614,4293.3,4293.2,1.0013]
[1759341147250,3.62679,4293.6,4293.2,0.6717]
[1759341147457,3.4296,4293.6,4293.5,0.884]
[1759341147667,3.7531,4293.6,4293.5,1.127]
[1759341147958,0.0028172,4294.1,4293.5,1.127]
[1759341148163,0.4217572,4294.1,4294.0,0.884]
[1759341148458,0.0028172,4294.1,4294.0,1.127]
[1759341149364,0.0028172,4294.1,4294.0,41.927]
[1759341150163,0.0028172,4294.1,4294.0,41.684]
[1759341150465,0.0028172,4294.1,4294.0,78.26]
[1759341152365,0.0028172,4294.1,4294.0,41.684]
[1759341152562,0.0028172,4294.1,4294.0,41.927]
[1759341152763,0.3263172,4294.1,4294.0,41.684]
[1759341152959,0.3263172,4294.1,4294.0,0.2232]
[1759341152960,0.7642172,4294.1,4294.0,0.2232]
[1759341153266,0.7642172,4294.1,4294.0,0.7958]
[1759341153863,0.7642172,4294.1,4294.0,1.0013]
[1759341154066,0.2246172,4294.1,4294.0,1.127]
[1759341154361,0.0028172,4294.1,4294.0,1.127]
[1759341155168,0.0028172,4294.1,4294.0,41.684]
[1759341155367,0.0028172,4294.1,4294.0,78.259]
[1759341155766,0.0028172,4294.1,4294.0,78.258]
[1759341156465,0.0028172,4294.1,4294.0,41.684]
[1759341156663,0.0028172,4294.1,4294.0,78.258]
[1759341157166,3.2078,4294.7,4294.6,0.7583]
[1759341157365,3.9692,4294.7,4294.6,0.2232]
[1759341157670,0.85682,4294.3,4294.2,0.7583]
[1759341157871,0.85682,4294.3,4294.2,1.0013]
[1759341158064,0.2218,4294.3,4294.2,1.0013]
[1759341158261,0.22416135,4294.3,4294.2,1.0013]
[1759341158667,0.7614,4293.8,4293.4,3.2078]
[1759341158963,0.3235,4293.5,4293.4,3.2078]
[1759341159169,0.41899,4293.6,4293.4,3.4508]
[1759341159373,0.74249,4293.6,4293.5,0.3296]
[1759341159770,0.74249,4293.6,4293.4,3.4508]
[1759341159970,0.3235,4293.5,4293.4,3.2078]
[1759341160272,0.3235,4293.5,4293.4,3.7804]
[1759341161272,0.5453,4293.5,4293.4,4.0036]
[1759341162471,0.7614,4293.5,4293.4,0.7958]
[1759341162772,0.7614,4293.5,4293.4,1.0013]
[1759341163072,0.4379,4293.5,4293.4,1.0013]
[1759341163268,0.4379,4293.5,4293.4,0.7583]
[1759341163572,0.7614,4293.5,4293.4,1.0013]
[1759341163966,0.7614,4293.5,4293.4,0.7583]
[1759341164163,0.4379,4293.5,4293.4,1.0013]
[1759341165776,3.7531,4294.0,4293.9,0.4287]
[1759341165974,0.2218,4294.0,4293.9,1.0013]
[1759341166275,0.22416135,4294.3,4294.2,0.4287]
[1759341166580,1.18268135,4294.3,4294.2,0.243]
[1759341167071,1.18035,4293.9,4293.8,0.5528]
[1759341167278,1.18035,4293.9,4293.8,0.7958]
[1759341167474,0.41898,4293.6,4293.5,0.5528]
[1759341167670,1.18038,4293.6,4293.5,0.7958]
[1759341168073,1.18038,4293.6,4293.5,1.0013]
[1759341168976,0.2218,4293.6,4293.5,1.127]
[1759341169277,4.38814,4294.1,4294.0,0.2232]
[1759341169475,4.38814,4294.1,4294.0,0.4662]
[1759341169674,4.38814,4294.1,4294.0,0.243]
[1759341170974,4.38814,4294.1,4294.0,0.4662]
[1759341171175,4.38814,4294.1,4294.0,0.7958]
[1759341172179,4.38814,4294.1,4294.0,0.243]
[1759341174282,4.38814,4294.1,4294.0,0.4643]
[1759341175282,4.38814,4294.1,4294.0,0.243]
[1759341177084,0.419,4293.4,4293.3,0.3259]
[1759341177276,0.8651,4293.4,4293.3,1.0126]
[1759341177579,0.41899,4293.6,4293.5,0.1304]
[1759341177777,0.63928,4293.7,4293.6,0.7706]
[1759341177979,0.41898,4293.7,4293.6,0.7706]
[1759341178178,3.2078,4294.1,4293.6,0.4447]
[1759341178373,0.2203,4293.8,4293.7,0.4447]
[1759341178578,0.2203,4293.8,4293.7,0.7706]
[1759341178984,1.18276,4293.8,4293.7,0.7706]
[1759341179682,0.4461,4293.8,4293.7,0.7706]
[1759341179985,0.86506,4293.8,4293.7,0.7706]
[1759341180171,0.86506,4293.8,4293.7,0.5493]
[1759341180377,1.18276,4293.8,4293.7,0.7892]
[1759341180778,1.18276,4293.8,4293.7,1.0126]
[1759341182080,3.2078,4294.1,4293.7,0.6867]
[1759341182274,0.41896,4293.9,4293.8,0.7706]
[1759341182681,3.2078,4294.1,4294.0,0.5751]
[1759341182682,3.84704,4294.1,4294.0,0.5751]
[1759341182877,0.63924,4294.1,4294.0,0.901]
[1759341183282,0.73898135,4294.3,4294.0,0.901]
[1759341183484,0.73898135,4294.3,4294.1,0.7706]
[1759341183485,0.63923,4294.2,4294.1,0.7706]
[1759341183786,1.18273,4294.2,4294.1,1.0126]
[1759341184186,1.18273,4294.2,4294.1,0.7706]
[1759341184387,1.18273,4294.2,4294.1,1.0126]
[1759341184584,1.18273,4294.2,4294.1,0.7706]
[1759341184787,1.18273,4294.2,4294.1,1.0126]
[1759341185986,0.41895,4294.0,4293.6,3.853]
[1759341186184,0.86505,4294.0,4293.9,0.5472]
[1759341186488,0.86511,4293.3,4293.2,0.7706]
[1759341186679,0.41903,4293.1,4293.0,3.5337]
[1759341186882,0.41903,4293.1,4292.7,0.3259]
[1759341186883,0.6655,4293.0,4292.7,0.3259]
[1759341187190,0.8913,4293.0,4292.9,0.26776745]
[1759341187385,0.8913,4293.0,4292.4,3.2078]
[1759341187386,5.8913,4293.0,4292.4,3.2078]
[1759341187584,0.7638,4292.2,4292.1,0.7706]
[1759341187886,0.3177,4292.6,4292.1,1.0126]
[1759341188080,1.18291,4292.3,4292.2,0.7706]
[1759341188279,1.18291,4292.3,4292.2,0.6867]
[1759341188487,1.18291,4292.3,4292.2,0.46587429]
[1759341188688,1.18291,4292.3,4292.2,1.01517429]
[1759341189990,0.1275,4292.5,4292.2,1.01517429]
[1759341189991,3.5255,4292.7,4292.3,0.3259]
[1759341190186,3.6539,4292.7,4291.6,0.04055247]
[1759341190387,0.8913,4291.5,4291.4,0.3407]
[1759341190587,0.99279,4291.5,4290.5,1.6660215]
[1759341190788,0.99279,4291.5,4290.4,3.2078]
[1759341190789,0.3177,4291.4,4291.3,0.1914]
[1759341190995,0.3177,4291.4,4291.3,0.4364]
[1759341191182,0.3177,4291.4,4291.3,0.4385866]
[1759341191594,0.538,4291.4,4291.3,0.4385866]
[1759341192093,0.1275,4292.0,4291.3,0.4385866]
[1759341192094,0.3177,4291.9,4291.3,0.4385866]
[1759341192289,0.1275,4292.0,4291.3,0.4385866]
[1759341192492,0.7638,4291.4,4291.3,0.0021866]
[1759341192796,0.7638,4291.4,4291.3,0.2471866]
[1759341193792,0.7638,4291.4,4291.3,0.3428866]
[1759341194085,0.7638,4291.4,4291.3,0.4385866]
[1759341194291,0.7638,4291.4,4291.3,0.2471866]
[1759341194696,0.7638,4291.4,4291.3,0.3428866]
[1759341194890,0.3177,4291.4,4291.3,0.4385866]
[1759341195095,0.1275,4291.5,4291.4,0.2512]
[1759341195295,0.4452,4291.5,4291.4,0.1914]
[1759341195497,0.6655,4291.5,4291.4,0.1914]
[1759341195790,0.3177,4291.5,4291.4,5.2512]
[1759341195995,0.1275,4292.0,4291.4,5.2512]
[1759341195996,0.1275,4292.0,4291.4,41.8382]
[1759341196189,0.1275,4292.0,4291.4,36.8382]
[1759341196391,0.538,4291.9,4291.8,0.0957]
[1759341196891,0.4461,4291.9,4291.5,40.8]
[1759341197095,0.7638,4291.7,4291.6,0.245]
[1759341197293,0.3177,4291.6,4291.5,40.8]
[1759341197494,0.7638,4291.4,4291.3,0.0021866]
[1759341197793,3.9716,4291.4,4291.3,0.0021866]
[1759341198001,3.9716,4291.4,4291.3,0.2471866]
[1759341198496,3.9716,4291.4,4291.3,0.0021866]
[1759341198795,3.9716,4291.4,4291.3,0.2471866]
[1759341201796,3.9716,4291.4,4291.3,0.0021866]
[1759341201997,8.9716,4291.4,4291.3,0.0021866]
[1759341202394,3.9716,4291.4,4291.3,0.0021866]
[1759341204202,3.9716,4291.4,4291.3,0.2471866]
[1759341204503,3.9716,4291.4,4291.3,0.0021866]
[1759341204899,3.9716,4291.4,4291.3,0.2471866]
[1759341205096,3.9716,4291.4,4291.3,0.0021866]
[1759341205295,0.5556,4290.5,4290.4,0.04056159]
[1759341205502,0.8902,4290.5,4290.4,0.28556159]
[1759341205696,0.8902,4290.5,4290.4,0.04056159]
[1759341205899,0.7556,4290.4,4290.3,3.2078]
[1759341206095,0.7556,4290.4,4290.3,3.5522]
[1759341206402,0.7584848,4290.4,4290.3,3.55422958]
[1759341206601,0.7584848,4290.4,4290.3,3.65362958]
[1759341206999,0.7584848,4290.4,4290.3,3.20982958]
[1759341207203,0.5500848,4290.4,4290.3,3.65362958]
[1759341207606,0.3374848,4290.4,4290.3,3.65362958]
[1759341208306,0.5500848,4290.4,4290.3,3.65362958]
[1759341208809,0.3374848,4290.4,4290.3,3.65362958]
[1759341209008,0.5500848,4290.4,4290.3,3.65362958]
[1759341209209,0.3374848,4290.4,4290.3,3.65362958]
[1759341209607,0.3374848,4290.4,4290.3,3.71572958]
[1759341209810,0.0028848,4290.4,4290.3,3.71572958]
[1759341210104,0.0028848,4290.4,4290.3,4.13503958]
[1759341210310,1.1777848,4290.4,4290.3,3.25039472]
[1759341210506,1.1777848,4290.4,4290.3,3.45482958]
[1759341213012,1.1777848,4290.4,4290.3,3.55422958]
[1759341213712,1.1777848,4290.4,4290.3,3.45482958]
[1759341214010,1.1777848,4290.4,4290.3,3.55422958]
[1759341214504,0.5500848,4290.4,4290.3,44.35422958]
[1759341214705,0.3374848,4290.4,4290.3,44.41632958]
[1759341214903,0.0028848,4290.4,4290.3,44.41632958]
[1759341215410,0.3374848,4290.4,4290.3,44.35322958]
[1759341215914,0.0028848,4290.4,4290.3,80.77032958]
[1759341217400,0.3374848,4290.4,4290.3,80.77032958]
[1759341218706,0.3374848,4290.4,4290.3,80.70922958]
[1759341219008,0.0028848,4290.4,4290.3,80.77132958]
[1759341219507,0.3374848,4290.4,4290.3,80.77132958]
[1759341220305,0.3374848,4290.4,4290.3,44.10922958]
[1759341220508,0.7584848,4290.4,4290.3,3.55322958]
[1759341221312,1.1777848,4290.4,4290.3,3.55322958]
[1759341221509,1.1777848,4290.4,4290.3,3.20982958]
[1759341221708,1.1777848,4290.4,4290.3,3.45382958]
[1759341222510,1.1777848,4290.4,4290.3,3.55322958]
[1759341222909,1.1777848,4290.4,4290.3,3.30922958]
[1759341223115,1.1777848,4290.4,4290.3,3.65262958]
[1759341223515,1.1777848,4290.4,4290.3,3.45382958]
[1759341224216,0.6818,4289.5,4289.4,3.4066]
[1759341224415,0.3346,4289.5,4289.4,3.7127]
[1759341224614,0.1346,4290.0,4289.4,44.5127]
[1759341224615,0.41936,4289.8,4289.4,44.5127]
[1759341224921,0.96655,4289.9,4289.8,0.1988]
[1759341225114,0.96655,4289.9,4289.8,0.44566312]
[1759341225419,0.3346,4289.9,4289.8,0.44566312]
[1759341225613,0.3346,4289.9,4289.8,0.50776312]
[1759341225813,0.3346,4290.3,4289.8,0.86502312]
[1759341226022,3.8425848,4290.4,4290.3,0.1988]
[1759341226319,4.65879874,4290.4,4290.3,0.4428]
[1759341226507,4.99339874,4290.4,4290.3,0.4428]
[1759341226910,4.99339874,4290.4,4289.8,0.00286312]
[1759341227114,0.6818,4290.0,4289.9,0.1988]
[1759341227318,0.4692,4290.0,4289.9,36.8008]
[1759341227618,0.4692,4290.0,4289.9,37.22015]
[1759341228019,0.4692,4290.0,4289.9,0.61815]
[1759341228214,0.421,4290.3,4290.2,0.0994]
[1759341228409,0.7556,4290.3,4290.2,0.1988]
[1759341228810,0.5472,4290.3,4290.2,0.4428]
[1759341229022,0.3346,4290.3,4290.2,0.4428]
[1759341229618,0.7556,4290.3,4290.2,0.51872]
[1759341229820,0.7556,4290.3,4290.2,0.244]
[1759341230121,0.7556,4290.3,4290.2,0.3434]
[1759341230521,0.3346,4290.3,4290.2,0.4428]
[1759341230722,0.5472,4290.3,4290.2,0.86212]
[1759341230916,0.5472,4290.3,4290.2,0.4428]
[1759341231117,0.3346,4290.3,4290.2,0.86212]
[1759341231419,0.3346,4290.3,4290.2,0.92422]
[1759341231614,0.0028848,4290.4,4290.2,0.92422]
[1759341231615,0.0028848,4290.4,4290.2,0.5049]
[1759341231818,0.3374848,4290.4,4290.3,0.1988]
[1759341232021,0.3374848,4290.4,4290.3,0.68021]
[1759341232218,0.3374848,4290.4,4290.3,0.61811]
[1759341233220,0.5500848,4290.4,4290.3,0.61811]
[1759341233725,0.3374848,4290.4,4290.3,0.68031]
[1759341234719,0.5557848,4290.4,4290.3,41.41811]
[1759341235317,0.3374848,4290.4,4290.3,41.41811]
[1759341236225,0.3374848,4290.4,4290.3,41.48031]
[1759341236721,0.3374848,4290.4,4290.3,41.72331]
[1759341239125,0.3374848,4290.4,4290.3,41.66111]
[1759341240124,0.2183,4289.9,4289.8,0.20186312]
[1759341240326,0.3174,4289.9,4289.8,36.80286312]
[1759341240521,0.3174,4289.9,4289.8,36.86506312]
[1759341240721,0.3174,4289.9,4289.8,77.66506312]
[1759341241323,0.3174,4289.9,4289.8,40.90236312]
[1759341241530,0.3174,4289.9,4289.8,41.04586312]
[1759341241826,0.3174,4289.9,4289.8,41.22221312]
[1759341242025,0.3174,4289.9,4289.8,41.46521312]
[1759341242427,0.3174,4289.9,4289.8,40.80286312]
[1759341242623,0.3174,4289.9,4289.8,41.22221312]
[1759341242818,0.3174,4289.9,4289.8,41.46521312]
[1759341243025,0.3174,4289.9,4289.8,41.04586312]
[1759341243728,0.3174,4289.9,4289.8,40.80286312]
[1759341243926,0.3174,4289.9,4289.8,41.04586312]
[1759341246017,0.3174,4289.9,4289.8,40.80286312]
[1759341246215,0.7491,4289.9,4289.8,0.00286312]
[1759341246425,0.7491,4289.9,4289.8,0.24486312]
[1759341246620,0.7491,4289.9,4289.8,0.34436312]
[1759341247224,0.7491,4289.9,4289.8,0.24486312]
[1759341247825,0.7491,4289.9,4289.8,0.44386312]
[1759341248535,0.7491,4289.9,4289.8,0.34436312]
[1759341248733,0.5357,4289.9,4289.8,0.44386312]
[1759341248935,0.7491,4289.9,4289.8,0.44386312]
[1759341249228,0.7491,4289.9,4289.8,0.24486312]
[1759341249428,0.7491,4289.9,4289.8,0.34436312]
[1759341250027,0.7491,4289.9,4289.8,0.44386312]
[1759341250237,0.7491,4289.9,4289.8,0.34436312]
[1759341251323,0.7491,4289.9,4289.8,0.10236312]
[1759341251528,0.7491,4289.9,4289.8,0.34536312]
[1759341251830,0.7491,4289.9,4289.8,0.44486312]
[1759341252021,0.7491,4289.9,4289.8,0.34536312]
[1759341254134,0.5308,4289.9,4289.8,0.34536312]
[1759341254329,0.3202848,4290.4,4290.3,0.199]
[1759341254530,0.5385848,4290.4,4290.3,0.441]
[1759341255033,0.5385848,4290.4,4290.3,41.241]
[1759341257335,0.3202848,4290.4,4290.3,41.241]
[1759341257541,0.3202848,4290.4,4290.3,41.3032]
[1759341257938,0.3202848,4290.4,4290.3,77.6642]
[1759341258144,0.1346,4291.0,4290.8,0.2612]
[1759341258343,0.452,4291.0,4290.9,0.5032]
[1759341258743,0.6703,4291.0,4290.9,0.441]
[1759341259143,0.67268588,4291.0,4290.9,0.441]
[1759341260241,0.67268588,4291.0,4290.9,0.5028]
[1759341260242,0.31978588,4291.0,4290.9,0.5028]
[1759341260645,0.44368588,4291.0,4290.9,0.5028]
[1759341261140,0.31978588,4291.0,4290.9,0.5028]
[1759341261442,0.56518588,4291.0,4290.9,0.3409]
[1759341261651,0.89698588,4291.0,4290.9,0.4398]
[1759341263737,0.67418588,4291.0,4290.9,0.4398]
[1759341266749,0.67418588,4291.0,4290.9,0.1978]
[1759341267045,0.89668588,4291.0,4290.9,0.4398]
[1759341267445,0.89668588,4291.0,4290.9,0.1978]
[1759341267741,0.89668588,4291.0,4290.9,0.4398]
[1759341269345,0.89668588,4291.0,4290.4,0.0619]
[1759341269346,0.5604,4290.5,4290.3,44.0078]
[1759341269542,0.8978,4290.5,4290.4,0.242]
[1759341270245,0.3374,4290.4,4290.3,40.8]
[1759341270650,0.3374,4290.4,4290.3,41.042]
[1759341272048,0.7567,4290.4,4290.3,41.042]
[1759341272553,0.432,4289.9,4289.8,3.21066312]
[1759341272753,0.3374,4289.9,4289.8,3.71276312]
[1759341273143,0.3374,4289.9,4289.8,44.45086312]
[1759341273748,0.1284,4290.0,4289.8,44.87021312]
[1759341273947,0.1284,4290.0,4289.9,0.2601]
[1759341274147,0.3374,4290.4,4290.0,0.0619]
[1759341274451,0.5469,4290.4,4290.3,0.1982]
[1759341274750,1.1887,4290.4,4290.3,0.4402]
[1759341275550,1.1887,4290.4,4290.3,0.242]
[1759341275750,0.5469,4289.9,4289.8,40.80286312]
[1759341275946,0.5469,4289.9,4289.8,77.40186312]
[1759341276746,0.5469,4289.9,4289.8,40.80286312]
[1759341277351,0.1284,4290.0,4289.9,0.0619]
[1759341277546,0.4658,4290.0,4289.9,36.6599]
[1759341278450,0.4658,4290.0,4289.9,36.598]
[1759341278847,0.8978,4290.0,4289.9,0.1982]
[1759341279050,0.8978,4290.0,4289.9,36.7982]
[1759341279251,0.8978,4290.0,4289.9,0.4402]
[1759341280055,0.8978,4290.0,4289.9,0.1982]
[1759341280256,0.8978,4290.0,4289.9,36.7982]
[1759341280956,0.2095,4290.5,4290.4,0.4399]
[1759341281157,0.2095,4290.5,4290.4,1.0149]
[1759341281656,0.62879,4290.5,4290.4,1.0149]
[1759341281856,0.2095,4290.5,4290.4,1.0149]
[1759341282858,3.33408588,4291.0,4290.5,0.4581]
[1759341283156,3.33408588,4291.0,4290.8,0.7729]
[1759341283157,0.5469,4290.9,4290.8,0.7729]
[1759341283356,0.5469,4290.9,4290.8,1.0139]
[1759341283563,3.21018588,4291.0,4290.9,0.333]
[1759341283758,3.21018588,4291.0,4290.9,0.7729]
[1759341284158,0.00238588,4291.0,4290.9,41.5729]
[1759341285558,0.46818588,4291.0,4290.9,41.2399]
[1759341285753,0.33978588,4291.0,4290.9,41.5729]
[1759341285952,0.00238588,4291.0,4290.9,41.5729]
[1759341286158,3.2078,4291.5,4291.4,0.7729]
[1759341286455,3.4173,4291.5,4291.4,1.0139]
[1759341286648,3.2078,4291.5,4291.4,1.0139]
[1759341287060,3.21054546,4291.5,4291.4,1.0139]
[1759341287960,3.21054546,4291.5,4291.4,41.8139]
[1759341289854,3.21054546,4291.5,4291.4,41.5729]
[1759341290153,3.21054546,4291.5,4291.4,41.8139]
[1759341290752,3.54794546,4291.5,4291.4,41.8139]
[1759341290957,3.21054546,4291.5,4291.4,41.8139]
[1759341293356,0.3374,4292.1,4291.4,41.8139]
[1759341293357,0.3374,4292.1,4291.4,41.4809]
[1759341293561,0.2269,4292.4,4292.3,0.777]
[1759341293868,0.41909,4292.5,4292.4,0.777]
[1759341294363,0.64828171,4292.5,4292.4,0.777]
[1759341295156,0.00229171,4292.5,4292.4,0.777]
[1759341296158,0.00229171,4292.5,4292.4,41.577]
[1759341296365,0.33719171,4292.5,4292.4,41.577]
[1759341296663,8.66909171,4292.5,4292.4,41.041]
[1759341297565,5.91049171,4292.5,4292.4,0.241]
[1759341297754,5.91049171,4292.5,4292.4,0.4653]
[1759341297755,0.91049171,4292.5,4292.4,0.4653]
[1759341298061,0.78639171,4292.5,4292.4,1.018]
[1759341299465,0.91049171,4292.5,4292.4,1.018]
[1759341299859,0.91049171,4292.5,4292.4,0.6852]
[1759341300262,4.53738171,4292.5,4292.4,0.24]
[1759341302263,1.32958171,4292.5,4292.4,0.24]
[1759341302962,1.32958171,4292.5,4292.4,0.4643]
[1759341303367,0.57559171,4292.5,4292.4,0.2243]
[1759341303572,0.57559171,4292.5,4292.4,0.4643]
[1759341303968,0.91049171,4292.5,4292.4,0.4643]
[1759341304463,0.78639171,4292.5,4292.4,1.017]